fUSD/lending_fUSD_20250426
["ID","MTS","AMOUNT","RATE_DAILY","PERIOD"]
[359054697,1745679037972,-499.34,0.00019973,2]
[359054699,1745679037982,-661.01,0.00019973,2]
[359054701,1745679037992,-400.0,0.00019973,2]
[359054703,1745679038003,-468.2,0.00019973,2]
[359054705,1745679038013,-924.95,0.00019973,2]
[359054707,1745679038023,-400.0,0.00019973,2]
[359054709,1745679038033,-400.0,0.00019973,2]
[359054711,1745679038044,-400.0,0.00019973,2]
[359054713,1745679038054,-1496.59,0.00019973,2]
[359054715,1745679038064,-400.0,0.00019973,2]
[359054717,1745679038074,-400.0,0.00019973,2]
[359054719,1745679038084,-400.0,0.00019973,2]
[359054722,1745679038095,-474.02,0.00019973,2]
[359054724,1745679038104,-635.79,0.00019973,2]
[359054726,1745679038114,-407.9,0.00019973,2]
[359054728,1745679038124,-752.51,0.00019973,2]
[359054730,1745679038134,-723.71,0.00019973,2]
[359054732,1745679038144,-707.41,0.00019973,2]
[359054734,1745679038154,-400.0,0.00019973,2]
[359054736,1745679038164,-469.46,0.00019973,2]
[359054738,1745679038175,-691.79,0.00019973,2]
[359054740,1745679038185,-704.27,0.00019973,2]
[359054742,1745679038195,-487.06,0.00019973,2]
[359054744,1745679038206,-556.55,0.00019973,2]
[359054746,1745679038216,-647.63,0.00019973,2]
[359054748,1745679038226,-400.0,0.00019973,2]
[359054751,1745679038237,-490.62,0.00019973,2]
[359054753,1745679038247,-400.0,0.00019973,2]
[359054755,1745679038257,-400.0,0.00019973,2]
[359054757,1745679038267,-475.0,0.00019973,2]
[359054759,1745679038279,-772.09,0.00019973,2]
[359054761,1745679038290,-577.63,0.00019973,2]
[359054763,1745679038300,-400.0,0.00019973,2]
[359054765,1745679038310,-400.0,0.00019973,2]
[359054767,1745679038320,-582.95,0.00019973,2]
[359054769,1745679038329,-400.0,0.00019973,2]
[359054771,1745679038339,-400.0,0.00019973,2]
[359054773,1745679038349,-1211.05,0.00019973,2]
[359054775,1745679038359,-985.99,0.00019973,2]
[359054777,1745679038369,-400.0,0.00019973,2]
[359054779,1745679038379,-400.0,0.00019973,2]
[359054781,1745679038389,-400.0,0.00019973,2]
[359054783,1745679038399,-1105.11,0.00019973,2]
[359054785,1745679038409,-933.36,0.00019973,2]
[359054787,1745679038419,-400.0,0.00019973,2]
[359054790,1745679038429,-599.24,0.00019973,2]
[359054792,1745679038439,-433.15,0.00019973,2]
[359054794,1745679038448,-400.0,0.00019973,2]
[359054796,1745679038458,-400.0,0.00019973,2]
[359054798,1745679038468,-300.0,0.00019973,2]
[359054800,1745679038478,-957.46,0.00019973,2]
[359054802,1745679038488,-860.32,0.00019973,2]
[359054803,1745679038498,-577.58,0.00019973,2]
[359054805,1745679038508,-400.0,0.00019973,2]
[359054807,1745679038518,-672.04,0.00019973,2]
[359054808,1745679038528,-400.0,0.00019973,2]
[359054809,1745679038538,-400.0,0.00019973,2]
[359054811,1745679038547,-400.0,0.00019973,2]
[359054813,1745679038556,-400.0,0.00019973,2]
[359054814,1745679038566,-200.0,0.00019973,2]
[359054815,1745679038575,-499.37,0.00019973,2]
[359054816,1745679038585,-461.93,0.00019973,2]
[359054817,1745679038594,-400.0,0.00019973,2]
[359054818,1745679038604,-400.0,0.00019973,2]
[359054819,1745679038613,-400.0,0.00019973,2]
[359054820,1745679038623,-400.0,0.00019973,2]
[359054821,1745679038633,-400.0,0.00019973,2]
[359054822,1745679038643,-400.0,0.00019973,2]
[359054823,1745679038652,-400.0,0.00019973,2]
[359054824,1745679038662,-400.0,0.00019973,2]
[359054825,1745679038671,-400.0,0.00019973,2]
[359054826,1745679038681,-608.37,0.00019973,2]
[359054827,1745679038691,-400.0,0.00019973,2]
[359054828,1745679038700,-400.0,0.00019973,2]
[359054829,1745679038710,-400.0,0.00019973,2]
[359054830,1745679038720,-400.0,0.00019973,2]
[359054831,1745679038730,-400.0,0.00019973,2]
[359054832,1745679038739,-730.2,0.00019973,2]
[359054833,1745679038749,-400.0,0.00019973,2]
[359054834,1745679038759,-611.88,0.00019973,2]
[359054835,1745679038769,-400.0,0.00019973,2]
[359054837,1745679038779,-400.0,0.00019973,2]
[359054839,1745679038789,-400.0,0.00019973,2]
[359054841,1745679038799,-400.0,0.00019973,2]
[359054843,1745679038809,-400.0,0.00019973,2]
[359054845,1745679038819,-684.32,0.00019973,2]
[359054847,1745679038830,-620.96,0.00019973,2]
[359054849,1745679038840,-400.0,0.00019973,2]
[359054851,1745679038850,-481.98,0.00019973,2]
[359054853,1745679038860,-549.33,0.00019973,2]
[359054855,1745679038870,-900.61,0.00019973,2]
[359054857,1745679038881,-400.0,0.00019973,2]
[359054859,1745679038890,-822.96,0.00019973,2]
[359054861,1745679038900,-400.0,0.00019973,2]
[359054863,1745679038910,-400.0,0.00019973,2]
[359054865,1745679038920,-703.45,0.00019973,2]
[359054867,1745679038930,-547.46,0.00019973,2]
[359054869,1745679038939,-400.0,0.00019973,2]
[359054871,1745679038950,-400.0,0.00019973,2]
[359054873,1745679038960,-429.21,0.00019973,2]
[359054875,1745679038969,-400.0,0.00019973,2]
[359054877,1745679038979,-400.0,0.00019973,2]
[359054879,1745679038989,-747.67,0.00019973,2]
[359054889,1745679039392,-400.0,0.00019973,2]
[359054890,1745679039402,-917.08,0.00019973,2]
[359054891,1745679039412,-400.0,0.00019973,2]
[359054892,1745679039422,-213428.86,0.00019973,2]
[359054893,1745679039434,-400.0,0.00019973,2]
[359054894,1745679039444,-400.0,0.00019973,2]
[359054895,1745679039454,-769.25,0.00019973,2]
[359054896,1745679039463,-834.14,0.00019973,2]
[359054897,1745679039473,-400.0,0.00019973,2]
[359054898,1745679039484,-570.98,0.00019973,2]
[359054899,1745679039494,-400.0,0.00019973,2]
[359054900,1745679039504,-587.59,0.00019973,2]
[359054901,1745679039514,-552.44,0.00019973,2]
[359054902,1745679039524,-400.0,0.00019973,2]
[359054903,1745679039533,-400.0,0.00019973,2]
[359054904,1745679039543,-400.0,0.00019973,2]
[359054905,1745679039554,-555.51,0.00019973,2]
[359054906,1745679039563,-400.0,0.00019973,2]
[359054907,1745679039574,-400.0,0.00019973,2]
[359054908,1745679039585,-560.67,0.00019973,2]
[359054909,1745679039597,-400.0,0.00019973,2]
[359054910,1745679039610,-500.0,0.00019973,2]
[359054911,1745679039620,-400.0,0.00019973,2]
[359054912,1745679039629,-400.0,0.00019973,2]
[359054913,1745679039640,-400.0,0.00019973,2]
[359054914,1745679039649,-400.0,0.00019973,2]
[359054915,1745679039659,-400.0,0.00019973,2]
[359054917,1745679039669,-250.0,0.00019973,2]
[359054918,1745679039679,-422.51,0.00019973,2]
[359054919,1745679039689,-2943.06,0.00019973,2]
[359054920,1745679039698,-400.0,0.00019973,2]
[359054921,1745679039708,-626.58,0.00019973,2]
[359054922,1745679039717,-400.0,0.00019973,2]
[359054923,1745679039727,-400.0,0.00019973,2]
[359054924,1745679039737,-400.0,0.00019973,2]
[359054925,1745679039747,-490.73,0.00019973,2]
[359054926,1745679039757,-400.0,0.00019973,2]
[359054927,1745679039769,-400.0,0.00019973,2]
[359054928,1745679039779,-400.0,0.00019973,2]
[359054929,1745679039789,-4809.5,0.00019973,2]
[359054930,1745679039799,-400.0,0.00019973,2]
[359054931,1745679039808,-400.0,0.00019973,2]
[359054932,1745679039819,-400.0,0.00019973,2]
[359054933,1745679039829,-569.78,0.00019973,2]
[359054934,1745679039838,-400.0,0.00019973,2]
[359054935,1745679039850,-678.52,0.00019973,2]
[359054936,1745679039860,-609.23,0.00019973,2]
[359054937,1745679039870,-826.25,0.00019973,2]
[359054938,1745679039879,-455.11899499,0.00019973,2]
[359054939,1745679039889,-1099.59,0.00019973,2]
[359054940,1745679039898,-443.21,0.00019973,2]
[359054941,1745679039908,-707.5,0.00019973,2]
[359054942,1745679039918,-400.0,0.00019973,2]
[359054943,1745679039927,-400.0,0.00019973,2]
[359054944,1745679039937,-701.28,0.00019973,2]
[359054945,1745679039947,-400.0,0.00019973,2]
[359054946,1745679039957,-420.89,0.00019973,2]
[359054947,1745679039967,-400.0,0.00019973,2]
[359054948,1745679039977,-400.0,0.00019973,2]
[359054949,1745679039987,-520.92,0.00019973,2]
[359054950,1745679039996,-707.9,0.00019973,2]
[359054951,1745679040006,-400.0,0.00019973,2]
[359054952,1745679040015,-512.83,0.00019973,2]
[359054953,1745679040025,-1606.17,0.00019973,2]
[359054954,1745679040035,-500.0,0.00019973,2]
[359054955,1745679040044,-400.0,0.00019973,2]
[359054956,1745679040054,-400.0,0.00019973,2]
[359054957,1745679040064,-460.17,0.00019973,2]
[359054958,1745679040074,-1208.69,0.00019973,2]
[359054959,1745679040084,-597.9,0.00019973,2]
[359054960,1745679040094,-292.2041812,0.00019973,2]
[359054961,1745679040104,-400.0,0.00019973,2]
[359054962,1745679040114,-1003.45,0.00019973,2]
[359054963,1745679040124,-400.0,0.00019973,2]
[359054964,1745679040133,-400.0,0.00019973,2]
[359054965,1745679040142,-400.0,0.00019973,2]
[359054966,1745679040151,-400.0,0.00019973,2]
[359054967,1745679040161,-420.77,0.00019973,2]
[359054968,1745679040171,-827.97,0.00019973,2]
[359054969,1745679040180,-400.0,0.00019973,2]
[359054970,1745679040190,-400.0,0.00019973,2]
[359054971,1745679040200,-400.0,0.00019973,2]
[359054972,1745679040209,-746.04,0.00019973,2]
[359054973,1745679040218,-453.84,0.00019973,2]
[359054974,1745679040228,-1265.41,0.00019973,2]
[359054975,1745679040237,-826.38,0.00019973,2]
[359054976,1745679040247,-349.36704385,0.00019973,2]
[359054977,1745679040258,-400.0,0.00019973,2]
[359054978,1745679040268,-584.17,0.00019973,2]
[359054979,1745679040279,-227.76187215,0.00019973,2]
[359054980,1745679040289,-669.91,0.00019973,2]
[359054981,1745679040299,-599.17,0.00019973,2]
[359054982,1745679040309,-400.0,0.00019973,2]
[359054983,1745679040320,-400.0,0.00019973,2]
[359054984,1745679040330,-400.0,0.00019973,2]
[359054985,1745679040339,-400.0,0.00019973,2]
[359054986,1745679040349,-1134.1,0.00019973,2]
[359054987,1745679040359,-547.22,0.00019973,2]
[359054988,1745679040369,-400.0,0.00019973,2]
[359054989,1745679040378,-400.0,0.00019973,2]
[359054990,1745679040388,-400.0,0.00019973,2]
[359054991,1745679040398,-1072.02,0.00019973,2]
[359054992,1745679040408,-562.6,0.00019973,2]
[359054993,1745679040417,-400.0,0.00019973,2]
[359054995,1745679040427,-424.4,0.00019973,2]
[359054996,1745679040436,-824.32,0.00019973,2]
[359054997,1745679040445,-400.0,0.00019973,2]
[359054998,1745679040455,-284.2790831,0.00019973,2]
[359054999,1745679040464,-400.0,0.00019973,2]
[359055000,1745679040474,-1002.57,0.00019973,2]
[359055001,1745679040483,-3480.83,0.00019973,2]
[359055002,1745679040494,-400.0,0.00019973,2]
[359055003,1745679040504,-400.0,0.00019973,2]
[359055005,1745679040513,-400.0,0.00019973,2]
[359055006,1745679040523,-400.0,0.00019973,2]
[359055007,1745679040533,-400.0,0.00019973,2]
[359055008,1745679040542,-694.86,0.00019973,2]
[359055009,1745679040552,-400.0,0.00019973,2]
[359055010,1745679040561,-400.0,0.00019973,2]
[359055011,1745679040571,-615.83,0.00019973,2]
[359055012,1745679040580,-468.16,0.00019973,2]
[359055013,1745679040590,-405.79,0.00019973,2]
[359055014,1745679040600,-515.38,0.00019973,2]
[359055015,1745679040611,-400.0,0.00019973,2]
[359055016,1745679040622,-409.96,0.00019973,2]
[359055017,1745679040633,-400.0,0.00019973,2]
[359055018,1745679040643,-591.56,0.00019973,2]
[359055019,1745679040654,-757.26,0.00019973,2]
[359055020,1745679040664,-784.09,0.00019973,2]
[359055021,1745679040673,-400.0,0.00019973,2]
[359055022,1745679040683,-183.29250345,0.00019973,2]
[359055023,1745679040692,-400.0,0.00019973,2]
[359055024,1745679040702,-453.78,0.00019973,2]
[359055025,1745679040712,-400.0,0.00019973,2]
[359055026,1745679040721,-400.0,0.00019973,2]
[359055027,1745679040731,-1188.13,0.00019973,2]
[359055028,1745679040741,-400.0,0.00019973,2]
[359055029,1745679040750,-748.92,0.00019973,2]
[359055030,1745679040761,-731.11,0.00019973,2]
[359055031,1745679040771,-404.6,0.00019973,2]
[359055032,1745679040781,-400.0,0.00019973,2]
[359055033,1745679040790,-400.0,0.00019973,2]
[359055034,1745679040801,-523.63,0.00019973,2]
[359055035,1745679040811,-400.0,0.00019973,2]
[359055036,1745679040821,-704.12,0.00019973,2]
[359055037,1745679040832,-698.9,0.00019973,2]
[359055038,1745679040841,-386.68122914,0.00019973,2]
[359055039,1745679040851,-815.24,0.00019973,2]
[359055040,1745679040861,-1015.9,0.00019973,2]
[359055041,1745679040870,-400.0,0.00019973,2]
[359055042,1745679040880,-518.55,0.00019973,2]
[359055043,1745679040888,-400.0,0.00019973,2]
[359055044,1745679040898,-400.0,0.00019973,2]
[359055045,1745679040908,-400.0,0.00019973,2]
[359055046,1745679040917,-103183.53,0.00019973,2]
[359055047,1745679040927,-400.0,0.00019973,2]
[359055048,1745679040936,-819.44,0.00019973,2]
[359055049,1745679040946,-400.0,0.00019973,2]
[359055050,1745679040955,-785.64,0.00019973,2]
[359055051,1745679040965,-400.0,0.00019973,2]
[359055052,1745679040974,-400.0,0.00019973,2]
[359055053,1745679040983,-501.22,0.00019973,2]
[359055054,1745679040993,-500.0,0.00019973,2]
[359055055,1745679041002,-400.0,0.00019973,2]
[359055056,1745679041012,-1965.3,0.00019973,2]
[359055057,1745679041022,-670.53,0.00019973,2]
[359055058,1745679041031,-12403.73,0.00019973,2]
[359055059,1745679041041,-657.17,0.00019973,2]
[359055060,1745679041050,-748.22,0.00019973,2]
[359055061,1745679041060,-400.0,0.00019973,2]
[359055062,1745679041069,-498.74,0.00019973,2]
[359055063,1745679041079,-400.0,0.00019973,2]
[359055064,1745679041089,-1202.62416799,0.00019973,2]
[359055065,1745679041577,-4907.49583201,0.00019973,2]
[359055066,1745679041587,-400.0,0.00019973,2]
[359055067,1745679041596,-544.33762447,0.00019973,2]
[359055068,1745679041605,-783.16,0.00019973,2]
[359055069,1745679041614,-461.39,0.00019973,2]
[359055070,1745679041624,-166.68953543,0.00019973,2]
[359055071,1745679041633,-3877.13,0.00019973,2]
[359055072,1745679041642,-195.1393228,0.00019973,2]
[359055073,1745679042148,-555.10297549,0.00019973,2]
[359055074,1745679042159,-266.1937654,0.00019973,2]
[359055075,1745679042171,-1117.24035971,0.00019973,2]
[359055076,1745679042185,-212.3635766,0.00019973,2]
[359055077,1745679042195,-586.39,0.00019973,2]
[359055078,1745679042204,-400.0,0.00019973,2]
[359055079,1745679042213,-1110.91,0.00019973,2]
[359055080,1745679042223,-815.63,0.00019973,2]
[359055081,1745679042234,-8181.37,0.00019973,2]
[359055082,1745679042245,-400.0,0.00019973,2]
[359055083,1745679042254,-927.0,0.00019973,2]
[359055084,1745679042264,-928.25,0.00019973,2]
[359055085,1745679042274,-400.0,0.00019973,2]
[359055086,1745679042284,-400.0,0.00019973,2]
[359055087,1745679042294,-412.86,0.00019973,2]
[359055088,1745679042303,-426.66,0.00019973,2]
[359055089,1745679042313,-400.0,0.00019973,2]
[359055090,1745679042322,-486.67,0.00019973,2]
[359055091,1745679042332,-575.24,0.00019973,2]
[359055092,1745679042341,-774.28,0.00019973,2]
[359055093,1745679042351,-704.92,0.00019973,2]
[359055094,1745679042360,-165.37377652,0.00019973,2]
[359055095,1745679042372,-551.24,0.00019973,2]
[359055096,1745679042382,-720.56,0.00019973,2]
[359055097,1745679042391,-568.01,0.00019973,2]
[359055099,1745679042402,-705.49,0.00019973,2]
[359055100,1745679042412,-400.0,0.00019973,2]
[359055101,1745679042421,-825.14,0.00019973,2]
[359055102,1745679042431,-625.36770935,0.00019973,2]
[359055103,1745679042440,-400.0,0.00019973,2]
[359055104,1745679042455,-813.55,0.00019974,2]
[359055105,1745679042465,-400.0,0.00019974,2]
[359055106,1745679042475,-400.0,0.00019974,2]
[359055107,1745679042485,-200.0,0.00019974,2]
[359055108,1745679042495,-400.0,0.00019974,2]
[359055110,1745679042506,-200.0,0.00019974,2]
[359055111,1745679042517,-244.37037295,0.00019974,2]
[359055112,1745679042526,-503.20936265,0.00019974,2]
[359055113,1745679042536,-509.13702663,0.00019974,2]
[359055114,1745679042547,-400.0,0.00019974,2]
[359055115,1745679042557,-829.71,0.00019974,2]
[359055116,1745679042566,-400.0,0.00019974,2]
[359055117,1745679042576,-400.0,0.00019974,2]
[359055118,1745679042585,-400.0,0.00019974,2]
[359055119,1745679042595,-400.0,0.00019974,2]
[359055120,1745679042605,-503.01,0.00019974,2]
[359055121,1745679042615,-631.46,0.00019974,2]
[359055122,1745679042624,-310.26577707,0.00019974,2]
[359055123,1745679042634,-427.88732377,0.00019974,2]
[359055124,1745679042644,-704.55,0.00019974,2]
[359055125,1745679042653,-400.0,0.00019974,2]
[359055126,1745679042663,-400.0,0.00019974,2]
[359055127,1745679042672,-400.0,0.00019974,2]
[359055128,1745679042683,-400.0,0.00019974,2]
[359055129,1745679042692,-370.25327974,0.00019974,2]
[359055130,1745679042702,-615.02,0.00019974,2]
[359055131,1745679042711,-400.0,0.00019974,2]
[359055132,1745679042722,-400.0,0.00019974,2]
[359055133,1745679042731,-400.0,0.00019974,2]
[359055134,1745679042741,-400.0,0.00019974,2]
[359055135,1745679042751,-400.0,0.00019974,2]
[359055136,1745679042761,-400.0,0.00019974,2]
[359055137,1745679042771,-400.0,0.00019974,2]
[359055138,1745679042781,-433.32537538,0.00019974,2]
[359055139,1745679042791,-600.44,0.00019974,2]
[359055140,1745679042801,-400.0,0.00019974,2]
[359055142,1745679043158,-400.0,0.00019974,2]
[359055143,1745679043169,-414.32753968,0.00019974,2]
[359055144,1745679043179,-400.0,0.00019974,2]
[359055145,1745679043189,-601.97,0.00019974,2]
[359055146,1745679043198,-400.0,0.00019974,2]
[359055147,1745679043208,-400.0,0.00019974,2]
[359055148,1745679043218,-551.39,0.00019974,2]
[359055149,1745679043227,-400.0,0.00019974,2]
[359055150,1745679043237,-400.0,0.00019974,2]
[359055151,1745679043246,-400.0,0.00019974,2]
[359055152,1745679043256,-400.0,0.00019974,2]
[359055153,1745679043265,-490.46,0.00019974,2]
[359055154,1745679043275,-759.45,0.00019974,2]
[359055155,1745679043284,-400.0,0.00019974,2]
[359055156,1745679043295,-400.0,0.00019974,2]
[359055157,1745679043304,-400.0,0.00019974,2]
[359055158,1745679043314,-400.0,0.00019974,2]
[359055159,1745679043323,-491.09,0.00019974,2]
[359055160,1745679043333,-400.0,0.00019974,2]
[359055161,1745679043343,-400.0,0.00019974,2]
[359055162,1745679043353,-400.0,0.00019974,2]
[359055163,1745679043362,-400.0,0.00019974,2]
[359055164,1745679043371,-400.0,0.00019974,2]
[359055165,1745679043381,-407.86,0.00019974,2]
[359055166,1745679043391,-400.0,0.00019974,2]
[359055167,1745679043401,-400.0,0.00019974,2]
[359055168,1745679043411,-736.77,0.00019974,2]
[359055169,1745679043421,-400.0,0.00019974,2]
[359055170,1745679043430,-400.0,0.00019974,2]
[359055171,1745679043440,-400.0,0.00019974,2]
[359055172,1745679043449,-610.15,0.00019974,2]
[359055173,1745679043470,-400.0,0.00019974,2]
[359055174,1745679043481,-400.0,0.00019974,2]
[359055175,1745679043491,-400.0,0.00019974,2]
[359055176,1745679043502,-512.84,0.00019974,2]
[359055177,1745679043511,-400.0,0.00019974,2]
[359055178,1745679043521,-400.0,0.00019974,2]
[359055179,1745679043531,-400.0,0.00019974,2]
[359055180,1745679043541,-400.0,0.00019974,2]
[359055181,1745679043551,-459.05,0.00019974,2]
[359055182,1745679043561,-202.30963719,0.00019974,2]
[359055183,1745679043572,-551.18,0.00019974,2]
[359055184,1745679043581,-400.0,0.00019974,2]
[359055185,1745679043591,-400.0,0.00019974,2]
[359055186,1745679043601,-400.0,0.00019974,2]
[359055187,1745679043611,-400.0,0.00019974,2]
[359055188,1745679043623,-681.98,0.00019974,2]
[359055189,1745679043634,-400.0,0.00019974,2]
[359055190,1745679043644,-524.95,0.00019974,2]
[359055191,1745679043654,-196.47492964,0.00019974,2]
[359055192,1745679043664,-750.47,0.00019974,2]
[359055193,1745679043680,-400.0,0.00019974,2]
[359055194,1745679043690,-400.0,0.00019974,2]
[359055195,1745679043702,-400.0,0.00019974,2]
[359055196,1745679043712,-400.0,0.00019974,2]
[359055197,1745679043723,-400.0,0.00019974,2]
[359055198,1745679043734,-412.61,0.00019974,2]
[359055199,1745679043744,-793.8,0.00019974,2]
[359055200,1745679043755,-400.0,0.00019974,2]
[359055201,1745679043765,-448.27,0.00019974,2]
[359055202,1745679043778,-386.85366755,0.00019974,2]
[359055203,1745679043788,-694.31,0.00019974,2]
[359055204,1745679043798,-909.94,0.00019974,2]
[359055205,1745679043808,-400.0,0.00019974,2]
[359055206,1745679043819,-400.0,0.00019974,2]
[359055207,1745679043829,-545.91,0.00019974,2]
[359055208,1745679043839,-400.0,0.00019974,2]
[359055209,1745679043850,-400.0,0.00019974,2]
[359055210,1745679043861,-400.0,0.00019974,2]
[359055211,1745679043872,-400.0,0.00019974,2]
[359055212,1745679043883,-400.0,0.00019974,2]
[359055213,1745679043893,-400.0,0.00019974,2]
[359055214,1745679043903,-454.64,0.00019974,2]
[359055215,1745679043915,-853.76,0.00019974,2]
[359055216,1745679043925,-400.0,0.00019974,2]
[359055217,1745679043936,-400.0,0.00019974,2]
[359055218,1745679043947,-455.13,0.00019974,2]
[359055219,1745679043957,-400.0,0.00019974,2]
[359055220,1745679043967,-845.65,0.00019974,2]
[359055221,1745679043979,-400.0,0.00019974,2]
[359055222,1745679043989,-400.0,0.00019974,2]
[359055223,1745679043999,-624.04,0.00019974,2]
[359055224,1745679044009,-400.0,0.00019974,2]
[359055225,1745679044019,-674.11,0.00019974,2]
[359055226,1745679044029,-400.0,0.00019974,2]
[359055227,1745679044039,-400.0,0.00019974,2]
[359055228,1745679044051,-400.0,0.00019974,2]
[359055229,1745679044061,-449.54,0.00019974,2]
[359055230,1745679044071,-433.67,0.00019974,2]
[359055231,1745679044081,-400.0,0.00019974,2]
[359055232,1745679044091,-994.43,0.00019974,2]
[359055233,1745679044101,-400.0,0.00019974,2]
[359055234,1745679044112,-504.99,0.00019974,2]
[359055235,1745679044127,-567.19,0.00019974,2]
[359055236,1745679044138,-460.64,0.00019974,2]
[359055237,1745679044148,-479.88,0.00019974,2]
[359055238,1745679044159,-400.0,0.00019974,2]
[359055239,1745679044169,-200.0,0.00019974,2]
[359055240,1745679044179,-400.0,0.00019974,2]
[359055241,1745679044190,-400.0,0.00019974,2]
[359055242,1745679044200,-400.0,0.00019974,2]
[359055243,1745679044210,-400.0,0.00019974,2]
[359055244,1745679044220,-300.0,0.00019974,2]
[359055245,1745679044231,-400.0,0.00019974,2]
[359055246,1745679044241,-709.37,0.00019974,2]
[359055247,1745679044251,-1730.14,0.00019974,2]
[359055248,1745679044262,-439.59,0.00019974,2]
[359055249,1745679044272,-685.3,0.00019974,2]
[359055250,1745679044281,-300.0,0.00019974,2]
[359055251,1745679044291,-400.0,0.00019974,2]
[359055252,1745679044302,-400.0,0.00019974,2]
[359055253,1745679044313,-400.0,0.00019974,2]
[359055254,1745679044323,-1552.37,0.00019974,2]
[359055255,1745679044333,-590.22,0.00019974,2]
[359055256,1745679044343,-401.16,0.00019974,2]
[359055257,1745679044353,-783.29,0.00019974,2]
[359055258,1745679044363,-400.0,0.00019974,2]
[359055259,1745679044373,-300.0,0.00019974,2]
[359055260,1745679044383,-400.0,0.00019974,2]
[359055261,1745679044393,-400.0,0.00019974,2]
[359055262,1745679044403,-200.0,0.00019974,2]
[359055263,1745679044414,-1942.33,0.00019974,2]
[359055264,1745679044424,-400.0,0.00019974,2]
[359055265,1745679044434,-400.0,0.00019974,2]
[359055266,1745679044444,-400.0,0.00019974,2]
[359055267,1745679044454,-400.0,0.00019974,2]
[359055268,1745679044465,-300.0,0.00019974,2]
[359055269,1745679044475,-400.0,0.00019974,2]
[359055270,1745679044485,-300.0,0.00019974,2]
[359055271,1745679044495,-400.0,0.00019974,2]
[359055272,1745679044505,-300.0,0.00019974,2]
[359055273,1745679044515,-400.0,0.00019974,2]
[359055274,1745679044524,-400.0,0.00019974,2]
[359055275,1745679044534,-685.51,0.00019974,2]
[359055276,1745679044544,-490.27,0.00019974,2]
[359055277,1745679044554,-400.0,0.00019974,2]
[359055278,1745679044564,-400.0,0.00019974,2]
[359055279,1745679044573,-479.4188343,0.00019974,2]
[359055280,1745679044585,-400.0,0.00019974,2]
[359055281,1745679044596,-400.0,0.00019974,2]
[359055282,1745679044609,-400.0,0.00019974,2]
[359055283,1745679044619,-400.0,0.00019974,2]
[359055284,1745679044629,-439.27,0.00019974,2]
[359055285,1745679044641,-400.0,0.00019974,2]
[359055286,1745679044652,-400.0,0.00019974,2]
[359055287,1745679044661,-400.0,0.00019974,2]
[359055288,1745679044673,-400.0,0.00019974,2]
[359055289,1745679044682,-400.0,0.00019974,2]
[359055290,1745679044692,-856.67,0.00019974,2]
[359055291,1745679044703,-400.0,0.00019974,2]